[Event "Titled Tuesday Blitz November 29 Early 2022"]
[White "Kamsky, Gata"]
[Black "Sadhwani, Raunak"]
[WhiteFideId "2000024"]
[BlackFideId "35093487"]
[WhiteElo "2872"]
[BlackElo "2992"]
[Result "1/2-1/2"]
[Round "09"]
[TimeControl "180+1"]
[Date "2022.11.29"]
[WhiteClock "0:00:19"]
[BlackClock "0:00:09"]

1. d4 {[%clk 0:03:00]}  Nf6 {[%clk 0:02:59]} 2. Bf4 {[%clk 0:02:59]}  d5 {[%clk 0:02:56]} 3. e3 {[%clk 0:02:58]}  e6 {[%clk 0:02:57]} 4. Nf3 {[%clk 0:02:57]}  Bd6 {[%clk 0:02:57]} 5. Bxd6 {[%clk 0:02:56]}  Qxd6 {[%clk 0:02:58]} 6. c4 {[%clk 0:02:56]}  dxc4 {[%clk 0:02:51]} 7. Nc3 {[%clk 0:02:56]}  a6 {[%clk 0:02:42]} 8. Bxc4 {[%clk 0:02:55]}  b5 {[%clk 0:02:43]} 9. Be2 {[%clk 0:02:55]}  Bb7 {[%clk 0:02:43]} 10. O-O {[%clk 0:02:54]}  Nbd7 {[%clk 0:02:44]} 11. Rc1 {[%clk 0:02:50]}  O-O {[%clk 0:02:43]} 12. a3 {[%clk 0:02:48]}  Qe7 {[%clk 0:02:24]} 13. b4 {[%clk 0:02:45]}  c6 {[%clk 0:02:15]} 14. Qc2 {[%clk 0:02:41]}  a5 {[%clk 0:02:15]} 15. Qb3 {[%clk 0:02:23]}  axb4 {[%clk 0:02:13]} 16. axb4 {[%clk 0:02:22]}  Nd5 {[%clk 0:02:10]} 17. Nxd5 {[%clk 0:02:21]}  exd5 {[%clk 0:02:11]} 18. Ra1 {[%clk 0:02:03]}  h6 {[%clk 0:01:54]} 19. Rfc1 {[%clk 0:01:58]}  Rfe8 {[%clk 0:01:51]} 20. Ne1 {[%clk 0:01:55]}  Nb6 {[%clk 0:01:39]} 21. Nd3 {[%clk 0:01:54]}  Nc4 {[%clk 0:01:39]} 22. Nc5 {[%clk 0:01:50]}  Nd6 {[%clk 0:01:39]} 23. Qc3 {[%clk 0:01:44]}  g6 {[%clk 0:01:23]} 24. h3 {[%clk 0:01:43]}  Rxa1 {[%clk 0:01:18]} 25. Rxa1 {[%clk 0:01:42]}  Bc8 {[%clk 0:01:19]} 26. Ra8 {[%clk 0:01:40]}  Qg5 {[%clk 0:01:15]} 27. Kh2 {[%clk 0:01:20]}  Qf6 {[%clk 0:01:15]} 28. Kg1 {[%clk 0:01:18]}  Qg5 {[%clk 0:01:14]} 29. Kh2 {[%clk 0:01:18]}  Kg7 {[%clk 0:01:11]} 30. Ra7 {[%clk 0:01:07]}  Qf6 {[%clk 0:01:08]} 31. Kg1 {[%clk 0:01:05]}  Qg5 {[%clk 0:01:08]} 32. Kh2 {[%clk 0:01:05]}  Qf6 {[%clk 0:00:56]} 33. Kg1 {[%clk 0:01:05]}  Bf5 {[%clk 0:00:48]} 34. Ra6 {[%clk 0:00:57]}  Rc8 {[%clk 0:00:45]} 35. Bd3 {[%clk 0:00:51]}  h5 {[%clk 0:00:42]} 36. Bxf5 {[%clk 0:00:49]}  Qxf5 {[%clk 0:00:43]} 37. Qd3 {[%clk 0:00:46]}  Qg5 {[%clk 0:00:43]} 38. Qe2 {[%clk 0:00:44]}  Qf5 {[%clk 0:00:42]} 39. Ra1 {[%clk 0:00:41]}  Re8 {[%clk 0:00:38]} 40. Qf3 {[%clk 0:00:41]}  Qxf3 {[%clk 0:00:18]} 41. gxf3 {[%clk 0:00:40]}  Rc8 {[%clk 0:00:18]} 42. f4 {[%clk 0:00:38]}  Kf6 {[%clk 0:00:18]} 43. Kg2 {[%clk 0:00:38]}  Kf5 {[%clk 0:00:18]} 44. Kf3 {[%clk 0:00:38]}  Ne4 {[%clk 0:00:18]} 45. Nd3 {[%clk 0:00:35]}  f6 {[%clk 0:00:16]} 46. Kg2 {[%clk 0:00:30]}  h4 {[%clk 0:00:14]} 47. Ra6 {[%clk 0:00:28]}  Ke6 {[%clk 0:00:09]} 48. Kf3 {[%clk 0:00:27]}  Kf5 {[%clk 0:00:09]} 49. Kg2 {[%clk 0:00:23]}  Ke6 {[%clk 0:00:09]} 50. Kf3 {[%clk 0:00:19]}  Kf5 {[%clk 0:00:09]} 51. Kg2 {[%clk 0:00:19]} 1/2-1/2


[Site "https://www.chess.com"]

[Event "Titled Tuesday Blitz November 29 Early 2022"]
[White "Kvaloy, Aksel Bu"]
[Black "Barash, Anton"]
[WhiteFideId "1528815"]
[BlackFideId "30935229"]
[WhiteElo "2184"]
[BlackElo "2330"]
[Result "1-0"]
[Round "09"]
[TimeControl "180+1"]
[Date "2022.11.30"]
[WhiteClock "0:01:10"]
[BlackClock "0:00:02"]

1. e4 {[%clk 0:02:52]}  e6 {[%clk 0:02:59]} 2. d4 {[%clk 0:02:46]}  d5 {[%clk 0:02:59]} 3. Nd2 {[%clk 0:02:45]}  Nc6 {[%clk 0:02:59]} 4. Ngf3 {[%clk 0:02:44]}  Nf6 {[%clk 0:03:00]} 5. e5 {[%clk 0:02:44]}  Nd7 {[%clk 0:03:00]} 6. c3 {[%clk 0:02:43]}  f6 {[%clk 0:03:00]} 7. Nh4 {[%clk 0:02:42]}  g6 {[%clk 0:02:26]} 8. exf6 {[%clk 0:02:38]}  Qxf6 {[%clk 0:02:25]} 9. Ndf3 {[%clk 0:02:32]}  Bd6 {[%clk 0:02:16]} 10. Bg5 {[%clk 0:02:30]}  Qf7 {[%clk 0:02:17]} 11. Bd3 {[%clk 0:02:28]}  e5 {[%clk 0:02:16]} 12. dxe5 {[%clk 0:02:27]}  Ndxe5 {[%clk 0:02:16]} 13. Nxe5 {[%clk 0:02:25]}  Nxe5 {[%clk 0:02:15]} 14. O-O {[%clk 0:02:22]}  O-O {[%clk 0:01:58]} 15. Bh6 {[%clk 0:02:13]}  Re8 {[%clk 0:01:29]} 16. f4 {[%clk 0:01:44]}  Ng4 {[%clk 0:01:25]} 17. f5 {[%clk 0:01:44]}  Nxh6 {[%clk 0:01:06]} 18. fxg6 {[%clk 0:01:43]}  Qe7 {[%clk 0:00:48]} 19. gxh7+ {[%clk 0:01:42]}  Kg7 {[%clk 0:00:48]} 20. Qh5 {[%clk 0:01:18]}  Qe3+ {[%clk 0:00:27]} 21. Kh1 {[%clk 0:01:17]}  Qxd3 {[%clk 0:00:27]} 22. Qxe8 {[%clk 0:01:14]}  Bxh2 {[%clk 0:00:02]} 23. h8=Q# {[%clk 0:01:10]} 1-0


[Site "https://www.chess.com"]

[Event "Titled Tuesday Blitz November 29 Early 2022"]
[White "Lehtosaari, Mauri"]
[Black "Yano, William Jorge Froes"]
[WhiteFideId "501999"]
[BlackFideId "2112949"]
[WhiteElo "2483"]
[BlackElo "2122"]
[Result "0-1"]
[Round "09"]
[TimeControl "180+1"]
[Date "2022.11.30"]
[WhiteClock "0:00:01"]
[BlackClock "0:00:07"]

1. d4 {[%clk 0:02:56]}  Nf6 {[%clk 0:02:59]} 2. Nf3 {[%clk 0:02:55]}  c5 {[%clk 0:02:58]} 3. e3 {[%clk 0:02:55]}  g6 {[%clk 0:02:58]} 4. Bd3 {[%clk 0:02:54]}  Bg7 {[%clk 0:02:58]} 5. O-O {[%clk 0:02:54]}  O-O {[%clk 0:02:56]} 6. b3 {[%clk 0:02:54]}  b6 {[%clk 0:02:53]} 7. Bb2 {[%clk 0:02:51]}  Bb7 {[%clk 0:02:53]} 8. Nbd2 {[%clk 0:02:49]}  d6 {[%clk 0:02:43]} 9. Rc1 {[%clk 0:02:44]}  Nbd7 {[%clk 0:02:34]} 10. c4 {[%clk 0:02:43]}  Qc7 {[%clk 0:02:34]} 11. d5 {[%clk 0:02:43]}  e6 {[%clk 0:02:31]} 12. e4 {[%clk 0:01:56]}  e5 {[%clk 0:02:31]} 13. h3 {[%clk 0:01:43]}  Nh5 {[%clk 0:02:29]} 14. Re1 {[%clk 0:01:43]}  Nf4 {[%clk 0:02:10]} 15. Bf1 {[%clk 0:01:43]}  f5 {[%clk 0:02:10]} 16. g3 {[%clk 0:01:41]}  fxe4 {[%clk 0:02:02]} 17. Nxe4 {[%clk 0:01:37]}  Nh5 {[%clk 0:01:58]} 18. Nfg5 {[%clk 0:01:35]}  Rae8 {[%clk 0:00:47]} 19. Ne6 {[%clk 0:01:31]}  Qb8 {[%clk 0:00:48]} 20. Bg2 {[%clk 0:01:25]}  Ndf6 {[%clk 0:00:47]} 21. Nxf8 {[%clk 0:01:20]}  Rxf8 {[%clk 0:00:42]} 22. Ng5 {[%clk 0:01:18]}  Bh6 {[%clk 0:00:39]} 23. Ne6 {[%clk 0:01:12]}  Bxc1 {[%clk 0:00:38]} 24. Bxc1 {[%clk 0:01:13]}  Rf7 {[%clk 0:00:36]} 25. Bg5 {[%clk 0:01:02]}  Ng7 {[%clk 0:00:31]} 26. Qd2 {[%clk 0:00:53]}  Nfe8 {[%clk 0:00:14]} 27. g4 {[%clk 0:00:42]}  Nxe6 {[%clk 0:00:13]} 28. dxe6 {[%clk 0:00:42]}  Rf8 {[%clk 0:00:14]} 29. Bd5 {[%clk 0:00:40]}  Bxd5 {[%clk 0:00:14]} 30. Qxd5 {[%clk 0:00:27]}  Kg7 {[%clk 0:00:14]} 31. Qd2 {[%clk 0:00:18]}  Kg8 {[%clk 0:00:13]} 32. Rd1 {[%clk 0:00:13]}  Qc8 {[%clk 0:00:11]} 33. e7 {[%clk 0:00:12]}  Rf7 {[%clk 0:00:11]} 34. Qd5 {[%clk 0:00:12]}  Kg7 {[%clk 0:00:11]} 35. Rf1 {[%clk 0:00:10]}  h6 {[%clk 0:00:11]} 36. Bh4 {[%clk 0:00:09]}  g5 {[%clk 0:00:11]} 37. Bg3 {[%clk 0:00:09]}  Nf6 {[%clk 0:00:11]} 38. Qd3 {[%clk 0:00:08]}  Qe6 {[%clk 0:00:10]} 39. Rd1 {[%clk 0:00:06]}  Ne8 {[%clk 0:00:09]} 40. h4 {[%clk 0:00:04]}  Rxe7 {[%clk 0:00:08]} 41. hxg5 {[%clk 0:00:04]}  hxg5 {[%clk 0:00:09]} 42. Qe2 {[%clk 0:00:05]}  Qf6 {[%clk 0:00:08]} 43. f3 {[%clk 0:00:05]}  Rf7 {[%clk 0:00:09]} 44. Kg2 {[%clk 0:00:05]}  Nc7 {[%clk 0:00:08]} 45. Rh1 {[%clk 0:00:05]}  Ne8 {[%clk 0:00:08]} 46. Qe4 {[%clk 0:00:06]}  Nc7 {[%clk 0:00:08]} 47. Qh7+ {[%clk 0:00:05]}  Kf8 {[%clk 0:00:09]} 48. Qe4 {[%clk 0:00:04]}  Ke7 {[%clk 0:00:09]} 49. Qb7 {[%clk 0:00:03]}  Ke6 {[%clk 0:00:09]} 50. Qc8+ {[%clk 0:00:02]}  Rd7 {[%clk 0:00:08]} 51. Rh7 {[%clk 0:00:01]}  Qd8 {[%clk 0:00:07]} 0-1


[Site "https://www.chess.com"]

[Event "Titled Tuesday Blitz November 29 Early 2022"]
[White "Lenderman, Aleksandr"]
[Black "Baskakov, Egor"]
[WhiteFideId "2021285"]
[BlackFideId "24197866"]
[WhiteElo "2607"]
[BlackElo "2211"]
[Result "1/2-1/2"]
[Round "09"]
[TimeControl "180+1"]
[Date "2022.11.29"]
[WhiteClock "0:00:04"]
[BlackClock "0:00:27"]

1. d4 {[%clk 0:03:00]}  Nf6 {[%clk 0:02:57]} 2. c4 {[%clk 0:03:00]}  e6 {[%clk 0:02:57]} 3. Nf3 {[%clk 0:03:00]}  d5 {[%clk 0:02:58]} 4. e3 {[%clk 0:03:00]}  Ne4 {[%clk 0:02:59]} 5. Bd3 {[%clk 0:02:58]}  Be7 {[%clk 0:02:56]} 6. O-O {[%clk 0:02:58]}  c6 {[%clk 0:02:55]} 7. b3 {[%clk 0:02:58]}  f5 {[%clk 0:02:55]} 8. Ba3 {[%clk 0:02:57]}  O-O {[%clk 0:02:56]} 9. Bxe7 {[%clk 0:02:56]}  Qxe7 {[%clk 0:02:57]} 10. Qc2 {[%clk 0:02:54]}  Bd7 {[%clk 0:02:57]} 11. Nc3 {[%clk 0:02:55]}  Be8 {[%clk 0:02:58]} 12. Ne5 {[%clk 0:02:55]}  Nd7 {[%clk 0:02:58]} 13. Nxd7 {[%clk 0:02:54]}  Qxd7 {[%clk 0:02:59]} 14. f3 {[%clk 0:02:51]}  Nxc3 {[%clk 0:02:59]} 15. Qxc3 {[%clk 0:02:52]}  Bg6 {[%clk 0:03:00]} 16. b4 {[%clk 0:02:47]}  Rac8 {[%clk 0:02:58]} 17. a4 {[%clk 0:02:47]}  h6 {[%clk 0:02:57]} 18. Qb3 {[%clk 0:02:35]}  Kh7 {[%clk 0:02:55]} 19. b5 {[%clk 0:02:35]}  Qf7 {[%clk 0:02:52]} 20. f4 {[%clk 0:02:29]}  Rc7 {[%clk 0:02:40]} 21. c5 {[%clk 0:02:28]}  Qe7 {[%clk 0:02:36]} 22. a5 {[%clk 0:02:25]}  cxb5 {[%clk 0:02:32]} 23. a6 {[%clk 0:02:21]}  Be8 {[%clk 0:02:23]} 24. axb7 {[%clk 0:02:20]}  Rxb7 {[%clk 0:02:23]} 25. Ra6 {[%clk 0:02:20]}  Kh8 {[%clk 0:02:19]} 26. Rfa1 {[%clk 0:02:19]}  g5 {[%clk 0:02:18]} 27. Rd6 {[%clk 0:01:50]}  Rg8 {[%clk 0:02:11]} 28. Qb2 {[%clk 0:01:47]}  Bf7 {[%clk 0:02:03]} 29. Raa6 {[%clk 0:01:45]}  gxf4 {[%clk 0:02:02]} 30. exf4 {[%clk 0:01:45]}  Qh4 {[%clk 0:02:03]} 31. Qf2 {[%clk 0:01:39]}  Qg4 {[%clk 0:01:54]} 32. Be2 {[%clk 0:01:36]}  Qg7 {[%clk 0:01:54]} 33. c6 {[%clk 0:01:33]}  Rc7 {[%clk 0:01:28]} 34. Rd7 {[%clk 0:01:25]}  Rxd7 {[%clk 0:01:18]} 35. cxd7 {[%clk 0:01:26]}  b4 {[%clk 0:01:13]} 36. Rxa7 {[%clk 0:01:19]}  Rd8 {[%clk 0:01:06]} 37. Rb7 {[%clk 0:01:06]}  b3 {[%clk 0:01:03]} 38. Qe3 {[%clk 0:00:45]}  b2 {[%clk 0:00:56]} 39. Bd3 {[%clk 0:00:43]}  Bg8 {[%clk 0:00:45]} 40. Qe5 {[%clk 0:00:35]}  Qxe5 {[%clk 0:00:44]} 41. fxe5 {[%clk 0:00:36]}  f4 {[%clk 0:00:40]} 42. Kf2 {[%clk 0:00:28]}  Bh7 {[%clk 0:00:27]} 43. Bxh7 {[%clk 0:00:27]}  Kxh7 {[%clk 0:00:28]} 44. Kf3 {[%clk 0:00:20]}  Kg6 {[%clk 0:00:27]} 45. Rxb2 {[%clk 0:00:12]}  Rxd7 {[%clk 0:00:27]} 46. Rb6 {[%clk 0:00:12]}  Kf5 {[%clk 0:00:27]} 47. Rb8 {[%clk 0:00:12]}  Ra7 {[%clk 0:00:26]} 48. Rf8+ {[%clk 0:00:12]}  Kg5 {[%clk 0:00:27]} 49. h4+ {[%clk 0:00:09]}  Kxh4 {[%clk 0:00:26]} 50. Rxf4+ {[%clk 0:00:03]}  Kg5 {[%clk 0:00:26]} 51. Rg4+ {[%clk 0:00:03]}  Kf5 {[%clk 0:00:25]} 52. Rf4+ {[%clk 0:00:03]}  Kg5 {[%clk 0:00:26]} 53. Rg4+ {[%clk 0:00:04]}  Kf5 {[%clk 0:00:26]} 54. Rf4+ {[%clk 0:00:04]}  Kg5 {[%clk 0:00:27]} 1/2-1/2


[Site "https://www.chess.com"]

[Event "Titled Tuesday Blitz November 29 Early 2022"]
[White "Levitan, Caleb Levi"]
[Black "Kuchava, Ana"]
[WhiteFideId "14332620"]
[BlackFideId "13605348"]
[WhiteElo "1963"]
[BlackElo "2001"]
[Result "0-1"]
[Round "09"]
[TimeControl "180+1"]
[Date "2022.11.30"]
[WhiteClock "0:00:03"]
[BlackClock "0:00:17"]

1. e4 {[%clk 0:02:55]}  c5 {[%clk 0:02:58]} 2. Nf3 {[%clk 0:02:55]}  d6 {[%clk 0:02:53]} 3. d4 {[%clk 0:02:54]}  cxd4 {[%clk 0:02:54]} 4. Nxd4 {[%clk 0:02:53]}  Nf6 {[%clk 0:02:54]} 5. Nc3 {[%clk 0:02:52]}  Nc6 {[%clk 0:02:53]} 6. Be3 {[%clk 0:02:49]}  Ng4 {[%clk 0:02:51]} 7. Nxc6 {[%clk 0:02:39]}  bxc6 {[%clk 0:02:49]} 8. Bf4 {[%clk 0:02:32]}  Qb6 {[%clk 0:02:48]} 9. Qd2 {[%clk 0:02:24]}  Qxb2 {[%clk 0:02:39]} 10. Rb1 {[%clk 0:02:22]}  Qa3 {[%clk 0:02:32]} 11. Bc4 {[%clk 0:02:07]}  Qc5 {[%clk 0:02:25]} 12. Bb3 {[%clk 0:01:50]}  Nxf2 {[%clk 0:02:16]} 13. Qxf2 {[%clk 0:01:41]}  Qxc3+ {[%clk 0:02:14]} 14. Bd2 {[%clk 0:01:40]}  Qf6 {[%clk 0:02:13]} 15. Qe3 {[%clk 0:01:22]}  e6 {[%clk 0:02:08]} 16. Ba4 {[%clk 0:01:14]}  Bd7 {[%clk 0:01:58]} 17. Bc3 {[%clk 0:00:58]}  e5 {[%clk 0:01:50]} 18. Rb7 {[%clk 0:00:52]}  Be7 {[%clk 0:01:43]} 19. Rf1 {[%clk 0:00:26]}  Qh4+ {[%clk 0:01:37]} 20. g3 {[%clk 0:00:24]}  Qg4 {[%clk 0:01:12]} 21. Kf2 {[%clk 0:00:10]}  O-O {[%clk 0:01:08]} 22. Rxa7 {[%clk 0:00:09]}  Bg5 {[%clk 0:00:57]} 23. Qb6 {[%clk 0:00:05]}  Rxa7 {[%clk 0:00:32]} 24. Qxa7 {[%clk 0:00:04]}  Qxe4 {[%clk 0:00:30]} 25. Re1 {[%clk 0:00:03]}  Qf5+ {[%clk 0:00:28]} 26. Kg1 {[%clk 0:00:03]}  e4 {[%clk 0:00:19]} 27. Rf1 {[%clk 0:00:03]}  Qe6 {[%clk 0:00:17]} 0-1


[Site "https://www.chess.com"]

[Event "Titled Tuesday Blitz November 29 Early 2022"]
[White "Malka, Samuel"]
[Black "Manon-og, Ramon Jr."]
[WhiteFideId "20643675"]
[BlackFideId "5200776"]
[WhiteElo "2455"]
[BlackElo "2342"]
[Result "1-0"]
[Round "09"]
[TimeControl "180+1"]
[Date "2022.11.30"]
[WhiteClock "0:00:21"]
[BlackClock "0:00:55"]

1. d4 {[%clk 0:03:00]}  Nf6 {[%clk 0:02:59]} 2. c4 {[%clk 0:03:01]}  g6 {[%clk 0:02:59]} 3. Nc3 {[%clk 0:03:01]}  d5 {[%clk 0:02:59]} 4. cxd5 {[%clk 0:02:53]}  Nxd5 {[%clk 0:02:59]} 5. e4 {[%clk 0:02:54]}  Nxc3 {[%clk 0:02:59]} 6. bxc3 {[%clk 0:02:54]}  Bg7 {[%clk 0:02:59]} 7. Nf3 {[%clk 0:02:55]}  c5 {[%clk 0:02:58]} 8. Bb5+ {[%clk 0:02:55]}  Bd7 {[%clk 0:02:56]} 9. Be2 {[%clk 0:02:48]}  cxd4 {[%clk 0:02:54]} 10. cxd4 {[%clk 0:02:49]}  Nc6 {[%clk 0:02:51]} 11. O-O {[%clk 0:02:42]}  Bg4 {[%clk 0:02:50]} 12. Rb1 {[%clk 0:02:29]}  O-O {[%clk 0:02:43]} 13. d5 {[%clk 0:02:27]}  Bxf3 {[%clk 0:02:39]} 14. Bxf3 {[%clk 0:02:28]}  Nd4 {[%clk 0:02:37]} 15. Rxb7 {[%clk 0:02:21]}  Nxf3+ {[%clk 0:02:37]} 16. Qxf3 {[%clk 0:02:21]}  a5 {[%clk 0:02:36]} 17. Bg5 {[%clk 0:02:19]}  Re8 {[%clk 0:02:33]} 18. Rfb1 {[%clk 0:02:09]}  Qd6 {[%clk 0:02:30]} 19. g3 {[%clk 0:01:49]}  Rac8 {[%clk 0:02:24]} 20. R1b6 {[%clk 0:01:41]}  Qe5 {[%clk 0:02:21]} 21. d6 {[%clk 0:01:35]}  Qxg5 {[%clk 0:02:16]} 22. d7 {[%clk 0:01:23]}  Rc1+ {[%clk 0:02:15]} 23. Kg2 {[%clk 0:01:24]}  Rd8 {[%clk 0:02:14]} 24. Rb8 {[%clk 0:01:25]}  e6 {[%clk 0:02:14]} 25. Rxd8+ {[%clk 0:01:21]}  Qxd8 {[%clk 0:02:13]} 26. Qf4 {[%clk 0:01:22]}  Qxd7 {[%clk 0:02:09]} 27. Qxc1 {[%clk 0:01:21]}  h5 {[%clk 0:01:56]} 28. h4 {[%clk 0:01:08]}  Qd4 {[%clk 0:01:55]} 29. Qe3 {[%clk 0:01:05]}  Qa4 {[%clk 0:01:48]} 30. Rb8+ {[%clk 0:01:04]}  Kh7 {[%clk 0:01:48]} 31. Qf3 {[%clk 0:01:02]}  Qd7 {[%clk 0:01:43]} 32. e5 {[%clk 0:01:01]}  Bxe5 {[%clk 0:01:21]} 33. Rb7 {[%clk 0:01:01]}  Qd4 {[%clk 0:01:21]} 34. Qxf7+ {[%clk 0:00:40]}  Bg7 {[%clk 0:01:18]} 35. Qxe6 {[%clk 0:00:36]}  a4 {[%clk 0:01:10]} 36. Rb6 {[%clk 0:00:34]}  Qd3 {[%clk 0:01:03]} 37. Rd6 {[%clk 0:00:32]}  Qc2 {[%clk 0:01:01]} 38. Rd7 {[%clk 0:00:31]}  a3 {[%clk 0:00:58]} 39. Qe7 {[%clk 0:00:20]}  Qb2 {[%clk 0:00:56]} 40. Qxg7+ {[%clk 0:00:19]}  Qxg7 {[%clk 0:00:55]} 41. Rxg7+ {[%clk 0:00:20]}  Kxg7 {[%clk 0:00:56]} 42. Kf3 {[%clk 0:00:19]}  Kf6 {[%clk 0:00:56]} 43. Ke3 {[%clk 0:00:19]}  g5 {[%clk 0:00:57]} 44. hxg5+ {[%clk 0:00:17]}  Kxg5 {[%clk 0:00:57]} 45. Kf3 {[%clk 0:00:16]}  Kf5 {[%clk 0:00:57]} 46. Kg2 {[%clk 0:00:16]}  Kg4 {[%clk 0:00:53]} 47. f3+ {[%clk 0:00:16]}  Kf5 {[%clk 0:00:53]} 48. Kh3 {[%clk 0:00:16]}  Ke5 {[%clk 0:00:53]} 49. Kh4 {[%clk 0:00:17]}  Kd4 {[%clk 0:00:54]} 50. f4 {[%clk 0:00:16]}  Kc3 {[%clk 0:00:55]} 51. f5 {[%clk 0:00:16]}  Kb2 {[%clk 0:00:53]} 52. f6 {[%clk 0:00:17]}  Kxa2 {[%clk 0:00:54]} 53. f7 {[%clk 0:00:18]}  Ka1 {[%clk 0:00:54]} 54. f8=Q {[%clk 0:00:18]}  a2 {[%clk 0:00:55]} 55. Qf1+ {[%clk 0:00:18]}  Kb2 {[%clk 0:00:54]} 56. Qf2+ {[%clk 0:00:18]}  Kb1 {[%clk 0:00:54]} 57. Qxa2+ {[%clk 0:00:19]}  Kxa2 {[%clk 0:00:54]} 58. Kxh5 {[%clk 0:00:20]}  Kb3 {[%clk 0:00:55]} 59. g4 {[%clk 0:00:21]}  Kc4 {[%clk 0:00:55]} 60. g5 {[%clk 0:00:22]}  Kd5 {[%clk 0:00:56]} 61. Kh6 {[%clk 0:00:22]}  Ke6 {[%clk 0:00:57]} 62. Kh7 {[%clk 0:00:22]}  Kf7 {[%clk 0:00:56]} 63. g6+ {[%clk 0:00:22]}  Kf8 {[%clk 0:00:57]} 64. g7+ {[%clk 0:00:23]}  Kf7 {[%clk 0:00:57]} 65. g8=Q+ {[%clk 0:00:24]}  Kf6 {[%clk 0:00:58]} 66. Qg6+ {[%clk 0:00:24]}  Ke5 {[%clk 0:00:58]} 67. Kh6 {[%clk 0:00:25]}  Kf4 {[%clk 0:00:58]} 68. Qg5+ {[%clk 0:00:24]}  Kf3 {[%clk 0:00:57]} 69. Kg6 {[%clk 0:00:23]}  Kf2 {[%clk 0:00:56]} 70. Qg4 {[%clk 0:00:22]}  Kf1 {[%clk 0:00:55]} 71. Qg3 {[%clk 0:00:19]}  Ke2 {[%clk 0:00:55]} 72. Kf5 {[%clk 0:00:19]}  Kd2 {[%clk 0:00:54]} 73. Qf3 {[%clk 0:00:19]}  Kc2 {[%clk 0:00:54]} 74. Qe3 {[%clk 0:00:20]}  Kb2 {[%clk 0:00:54]} 75. Qd3 {[%clk 0:00:20]}  Ka2 {[%clk 0:00:53]} 76. Qb5 {[%clk 0:00:20]}  Ka1 {[%clk 0:00:53]} 77. Ke4 {[%clk 0:00:21]}  Ka2 {[%clk 0:00:54]} 78. Kd3 {[%clk 0:00:22]}  Ka3 {[%clk 0:00:54]} 79. Kc2 {[%clk 0:00:22]}  Ka2 {[%clk 0:00:55]} 80. Qb2# {[%clk 0:00:21]} 1-0


[Site "https://www.chess.com"]

[Event "Titled Tuesday Blitz November 29 Early 2022"]
[White "Melian, Juan Sebastian"]
[Black "Hambleton, Aman"]
[WhiteFideId "3706575"]
[BlackFideId "2606577"]
[WhiteElo "2044"]
[BlackElo "2538"]
[Result "0-1"]
[Round "09"]
[TimeControl "180+1"]
[Date "2022.11.30"]
[WhiteClock "0:00:01"]
[BlackClock "0:00:14"]

1. d4 {[%clk 0:02:46]}  Nf6 {[%clk 0:02:59]} 2. c4 {[%clk 0:02:46]}  e6 {[%clk 0:03:00]} 3. Nc3 {[%clk 0:02:46]}  Bb4 {[%clk 0:03:00]} 4. e3 {[%clk 0:02:47]}  O-O {[%clk 0:02:59]} 5. Ne2 {[%clk 0:02:46]}  Re8 {[%clk 0:02:51]} 6. a3 {[%clk 0:02:44]}  Bf8 {[%clk 0:02:52]} 7. Ng3 {[%clk 0:02:37]}  d5 {[%clk 0:02:51]} 8. Be2 {[%clk 0:02:37]}  dxc4 {[%clk 0:02:27]} 9. Bxc4 {[%clk 0:02:35]}  c5 {[%clk 0:02:27]} 10. dxc5 {[%clk 0:02:33]}  Qxd1+ {[%clk 0:02:28]} 11. Kxd1 {[%clk 0:02:31]}  Bxc5 {[%clk 0:02:22]} 12. b4 {[%clk 0:02:29]}  Be7 {[%clk 0:02:21]} 13. Bb2 {[%clk 0:02:26]}  a5 {[%clk 0:02:17]} 14. b5 {[%clk 0:01:50]}  Nbd7 {[%clk 0:02:10]} 15. Ke2 {[%clk 0:01:50]}  Nb6 {[%clk 0:01:26]} 16. Bd3 {[%clk 0:01:50]}  Nfd7 {[%clk 0:01:19]} 17. Nce4 {[%clk 0:01:39]}  f5 {[%clk 0:01:18]} 18. Nd2 {[%clk 0:01:39]}  Nc5 {[%clk 0:01:17]} 19. Nc4 {[%clk 0:01:32]}  Nba4 {[%clk 0:01:04]} 20. Bd4 {[%clk 0:01:05]}  Nb3 {[%clk 0:00:53]} 21. Ne5 {[%clk 0:00:07]}  Nxa1 {[%clk 0:00:30]} 22. Rxa1 {[%clk 0:00:08]}  Bc5 {[%clk 0:00:28]} 23. Bxc5 {[%clk 0:00:04]}  Nxc5 {[%clk 0:00:28]} 24. Bc4 {[%clk 0:00:05]}  Rd8 {[%clk 0:00:15]} 25. Nh5 {[%clk 0:00:03]}  Kf8 {[%clk 0:00:13]} 26. Nf4 {[%clk 0:00:03]}  Ke7 {[%clk 0:00:14]} 27. h4 {[%clk 0:00:03]}  Bd7 {[%clk 0:00:14]} 28. f3 {[%clk 0:00:01]}  Rac8 {[%clk 0:00:14]} 0-1


[Site "https://www.chess.com"]

[Event "Titled Tuesday Blitz November 29 Early 2022"]
[White "Mohammed, Dilshad"]
[Black "Von Buelow, Georg"]
[WhiteFideId "5050421"]
[BlackFideId "4620658"]
[WhiteElo "2102"]
[BlackElo "2224"]
[Result "1-0"]
[Round "09"]
[TimeControl "180+1"]
[Date "2022.11.30"]
[WhiteClock "0:01:00"]
[BlackClock "0:00:02"]

1. Nf3 {[%clk 0:02:56]}  Nf6 {[%clk 0:02:59]} 2. d4 {[%clk 0:02:56]}  d5 {[%clk 0:02:58]} 3. e3 {[%clk 0:02:55]}  e6 {[%clk 0:02:58]} 4. Bd3 {[%clk 0:02:55]}  Bd6 {[%clk 0:02:57]} 5. O-O {[%clk 0:02:55]}  O-O {[%clk 0:02:57]} 6. Nbd2 {[%clk 0:02:56]}  Nbd7 {[%clk 0:02:56]} 7. e4 {[%clk 0:02:56]}  dxe4 {[%clk 0:02:56]} 8. Nxe4 {[%clk 0:02:57]}  Nxe4 {[%clk 0:02:57]} 9. Bxe4 {[%clk 0:02:58]}  Nf6 {[%clk 0:02:57]} 10. Bd3 {[%clk 0:02:59]}  b6 {[%clk 0:02:54]} 11. Bg5 {[%clk 0:03:00]}  Bb7 {[%clk 0:02:54]} 12. Ne5 {[%clk 0:03:00]}  Be7 {[%clk 0:02:48]} 13. c3 {[%clk 0:02:56]}  h6 {[%clk 0:02:46]} 14. Bh4 {[%clk 0:02:47]}  Ne4 {[%clk 0:02:37]} 15. Bxe7 {[%clk 0:02:45]}  Qxe7 {[%clk 0:02:37]} 16. Re1 {[%clk 0:02:44]}  Nf6 {[%clk 0:02:29]} 17. Rc1 {[%clk 0:02:43]}  Rad8 {[%clk 0:02:24]} 18. Bb1 {[%clk 0:02:43]}  c5 {[%clk 0:02:14]} 19. Qc2 {[%clk 0:02:43]}  g6 {[%clk 0:02:14]} 20. Qd2 {[%clk 0:02:22]}  Kg7 {[%clk 0:02:09]} 21. Re3 {[%clk 0:02:20]}  cxd4 {[%clk 0:02:00]} 22. cxd4 {[%clk 0:02:21]}  Qd6 {[%clk 0:01:57]} 23. Rce1 {[%clk 0:02:18]}  h5 {[%clk 0:00:40]} 24. Rg3 {[%clk 0:02:12]}  Rg8 {[%clk 0:00:21]} 25. Nxg6 {[%clk 0:02:07]}  fxg6 {[%clk 0:00:21]} 26. Rxg6+ {[%clk 0:02:06]}  Kf7 {[%clk 0:00:21]} 27. Rxf6+ {[%clk 0:01:56]}  Kxf6 {[%clk 0:00:21]} 28. Qh6+ {[%clk 0:01:56]}  Kf7 {[%clk 0:00:20]} 29. Qxh5+ {[%clk 0:01:54]}  Kf8 {[%clk 0:00:20]} 30. Qh6+ {[%clk 0:01:53]}  Kf7 {[%clk 0:00:16]} 31. Re5 {[%clk 0:01:27]}  Rxg2+ {[%clk 0:00:10]} 32. Kf1 {[%clk 0:01:27]}  Rg7 {[%clk 0:00:09]} 33. Qh5+ {[%clk 0:01:23]}  Kf8 {[%clk 0:00:09]} 34. Qh8+ {[%clk 0:01:21]}  Kf7 {[%clk 0:00:10]} 35. Qh5+ {[%clk 0:01:20]}  Ke7 {[%clk 0:00:10]} 36. Qh4+ {[%clk 0:01:18]}  Kd7 {[%clk 0:00:11]} 37. Qf6 {[%clk 0:01:16]}  Ba6+ {[%clk 0:00:10]} 38. Ke1 {[%clk 0:01:14]}  Rg1+ {[%clk 0:00:09]} 39. Kd2 {[%clk 0:01:12]}  Qxd4+ {[%clk 0:00:09]} 40. Kc2 {[%clk 0:01:12]}  Rc8+ {[%clk 0:00:09]} 41. Kb3 {[%clk 0:01:11]}  Qc4+ {[%clk 0:00:06]} 42. Ka3 {[%clk 0:01:11]}  Rxb1 {[%clk 0:00:03]} 43. Qf7+ {[%clk 0:01:10]}  Kd6 {[%clk 0:00:04]} 44. Re3 {[%clk 0:01:00]}  Rc5 {[%clk 0:00:02]} 45. Qf8+ {[%clk 0:01:00]}  Kd7 {[%clk 0:00:02]} 46. Qf7+ {[%clk 0:00:59]}  Kc8 {[%clk 0:00:02]} 47. b4 {[%clk 0:01:00]} 1-0


[Site "https://www.chess.com"]